Cogmind - Beta 9.2 @@@ ROGUE MODE // 2019.12.03 @ 20:30:03 Player: Fleshy Vegetable Bird Result: Destroyed by P-80 Master with Gamma Rifle Performance ------------- Evolutions (9) 4500 Regions Visited (30) 6000 Robots Destroyed (270) 1350 Value Destroyed (17956) 17956 Prototype IDs (37) 740 Alien Tech Used (0) 0 Bonus (15358) 15358 TOTAL SCORE: 45904 Bonus ------- High Alert Combat Kills 1718 Follower Combat Kills 7442 Entered Garrisons 1800 Used RIF Installer 4500 Network Hubs Disabled 200 Aligned with FarCom 300 Built Enhanced Grunts 300 Met R17 at Cetus 500 Friendly Fire -1402 Cogmind --------- Core Integrity 0/1600 Matter 232/300 Energy 100/100 System Corruption 7% Temperature Cool (0) Movement Core (100) Ox1 Location -1/Command Parts ------- > --- POWER (1) -------- (None) > --- PROPULSION (4) --- (None) > --- UTILITY (16) ----- Improved System Shield Relay Coupler [Grunt] (54) Relay Coupler [Demolisher] (29) Relay Coupler [Behemoth] (6) > --- WEAPON (4) ------- Advanced Remote Datajack > --- INVENTORY (4) ---- Enhanced Quantum Rifle Guided Plasma Cannon Peak State ------------ > --- POWER ------------ Reinforced Antimatter Reactor > --- PROPULSION ------- Medium Treads Armored Medium Treads Biometal Medium Treads Biometal Medium Treads > --- UTILITY ---------- Advanced Heat Sink Large Storage Unit High-capacity Storage Unit High-capacity Storage Unit High-capacity Storage Unit Compact Battery Advanced Targeting Computer Advanced Target Analyzer Advanced Phase Shifter Advanced Hacking Suite Improved System Shield Relay Coupler [Grunt] Relay Coupler [Grunt] Relay Coupler [Duelist] Relay Coupler [Demolisher] Relay Coupler [Hunter] > --- WEAPON ----------- Enhanced Nova Cannon Enhanced Nova Cannon Enhanced Nova Cannon Advanced Remote Datajack > --- INVENTORY -------- Quantum Reactor Biometal Medium Treads Biometal Heavy Treads Advanced Power Amplifier Advanced Cooling System Quantum Capacitor Advanced Force Booster Improved Focal Shield Advanced Force Field Improved Remote Force Field Improved Remote Force Field Relay Coupler [Grunt] Relay Coupler [Brawler] Relay Coupler [Brawler] Relay Coupler [Sentry] Relay Coupler [Specialist] Relay Coupler [Behemoth] Relay Coupler [Behemoth] Enhanced Quantum Rifle Enhanced Quantum Rifle Enhanced Quantum Rifle Guided Plasma Cannon Enhanced Nova Cannon Enhanced Nova Cannon KE Penetrator Compact Linear Accelerator Advanced Remote Datajack Power Sword [Rating: 150] Favorites ----------- Power Particle Reactor Engine Reinforced Deuterium Engine Power Core Nuclear Core Reactor Particle Reactor Propulsion Medium Treads Treads Medium Treads Leg Carbon-fiber Leg Wheel Wheel Utility High-capacity Storage Unit Device Advanced Heat Sink Storage High-capacity Storage Unit Processor Advanced Targeting Computer Hackware Relay Coupler [Grunt] Protection Centrium Medium Armor Plating Weapon Enhanced Nova Cannon Energy Gun Electrolaser Energy Cannon Enhanced Nova Cannon Ballistic Gun KE Penetrator Ballistic Cannon Magnetic Acceleration Cannon Launcher Advanced EMP Blaster Special Weapon Advanced Remote Datajack Impact Weapon Heavy Flail Slashing Weapon Power Sword Build | -11 -10 -10 -10 -9 -8 -8 -8 -8 -6 -6 -6 -6 -5 -5 -5 -5 -5 -5 -4 -4 -4 -4 -3 -3 -2 -2 -2 -2 -1 -1 ------- Run | Scr Mat Min Exi Min Mat Sto Gar Rec Fac Gar Fac Gar Fac Ext Cet Arc Hub Gar Fac Gar Fac Gar Res Gar Res Gar Res Gar Acc Com Slots Evolved 18 | . . . . . 4 . . . 4 . . . 2 . . . . . 2 . . . 2 . 2 . . . 2 . Power . | . . . . . . . . . . . . . . . . . . . . . . . . . . . . . . . Propulsion 2 | . . . . . 1 . . . 1 . . . . . . . . . . . . . . . . . . . . . Utility 14 | . . . . . 2 . . . 2 . . . 2 . . . . . 2 . . . 2 . 2 . . . 2 . Weapon 2 | . . . . . 1 . . . 1 . . . . . . . . . . . . . . . . . . . . . Parts Attached 476 | 6 1 5 3 . 18 21 11 2 5 12 5 29 15 16 14 5 3 12 24 29 26 21 6 35 42 38 13 21 9 29 Power 21 | 1 . . . . 2 . . . . 1 . 1 . 1 1 . . . 1 3 . . . 2 2 2 1 1 2 . Engine 5 | 1 . . . . 1 . . . . . . 1 . 1 1 . . . . . . . . . . . . . . . Core 2 | . . . . . 1 . . . . 1 . . . . . . . . . . . . . . . . . . . . Reactor 14 | . . . . . . . . . . . . . . . . . . . 1 3 . . . 2 2 2 1 1 2 . Propulsion 64 | 2 . 2 . . 2 7 2 . 1 3 . 2 3 4 2 1 . 2 2 1 . 3 . 5 5 2 6 2 1 4 Treads 59 | . . . . . 2 7 2 . 1 3 . 2 3 3 2 1 . 2 2 1 . 3 . 5 5 2 6 2 1 4 Leg 1 | . . . . . . . . . . . . . . 1 . . . . . . . . . . . . . . . . Wheel 4 | 2 . 2 . . . . . . . . . . . . . . . . . . . . . . . . . . . . Hover . | . . . . . . . . . . . . . . . . . . . . . . . . . . . . . . . Flight . | . . . . . . . . . . . . . . . . . . . . . . . . . . . . . . . Utility 173 | 1 1 1 2 . 6 1 3 . 2 1 2 8 9 5 5 1 2 3 12 10 9 9 4 17 10 17 . 12 6 14 Device 39 | . . . . . . . . . 1 . 1 1 . . 3 . . 1 3 4 2 3 1 3 3 3 . 1 1 8 Storage 23 | 1 1 1 2 . 3 1 1 . . . . . . . . . . . 3 2 . 1 . 3 1 1 . . 1 1 Processor 8 | . . . . . 1 . . . . . . 1 2 . . . . 1 . . . . . 1 . 1 . . . 1 Hackware 78 | . . . . . . . 1 . . 1 1 5 6 2 . . . . 4 3 4 5 2 8 5 12 . 11 4 4 Protection 25 | . . . . . 2 . 1 . 1 . . 1 1 3 2 1 2 1 2 1 3 . 1 2 1 . . . . . Artifact . | . . . . . . . . . . . . . . . . . . . . . . . . . . . . . . . Weapon 218 | 2 . 2 1 . 8 13 6 2 2 7 3 18 3 6 6 3 1 7 9 15 17 9 2 11 25 17 6 6 . 11 Energy Gun 51 | 2 . 1 . . 4 7 2 . . 4 . 8 . 1 . 1 . 2 . 3 2 1 1 2 6 2 2 . . . Energy Cannon 47 | . . . . . . 1 . . 1 . . 1 . 2 1 1 . 2 3 4 6 3 . 2 4 7 1 3 . 5 Ballistic Gun 34 | . . . 1 . 3 1 1 . . 1 . . 1 . 1 1 . . 1 3 4 2 . 3 6 3 . 1 . 1 Ballistic Cannon 8 | . . . . . . . . . . . . . . 2 2 . . . . . . . . 1 2 . . . . 1 Launcher 27 | . . 1 . . 1 2 3 1 1 2 . 3 . 1 1 . 1 3 2 4 . . . . 1 . . . . . Special Weapon 38 | . . . . . . . . 1 . . 2 4 1 . 1 . . . 2 1 5 3 . 3 3 5 2 2 . 3 Impact Weapon 1 | . . . . . . 1 . . . . . . . . . . . . . . . . . . . . . . . . Slashing Weapon 12 | . . . . . . 1 . . . . 1 2 1 . . . . . 1 . . . 1 . 3 . 1 . . 1 Piercing Weapon . | . . . . . . . . . . . . . . . . . . . . . . . . . . . . . . . Special Melee Weapon . | . . . . . . . . . . . . . . . . . . . . . . . . . . . . . . . Unidentified Prototypes 9 | . . . . . 3 2 . . . . . . . . . . . . . 1 . . . . 2 1 . . . . Parts Lost 126 | . . 1 . . . 5 . . 3 3 . 10 7 . 2 1 5 2 8 10 2 1 1 15 10 5 . 4 2 29 Power 8 | . . . . . . . . . . 1 . . . . . . . . 1 2 . . . 2 1 . . . 1 . Propulsion 29 | . . . . . . 2 . . 2 1 . 2 4 . 1 . 1 . 2 1 . 1 . 3 1 1 . 1 . 6 Utility 34 | . . . . . . . . . . . . 2 1 . . . 1 2 3 2 . . . 3 2 2 . 1 . 15 Weapon 55 | . . 1 . . . 3 . . 1 1 . 6 2 . 1 1 3 . 2 5 2 . 1 7 6 2 . 2 1 8 Highest Loss Streak 15 | . . 1 . . . 2 . . 3 1 . 3 4 . 1 1 5 1 6 6 1 1 1 5 5 2 . 2 1 15 Average Slot Usage (%) 93 | . 99 100 100 100 96 98 99 100 97 99 100 96 96 84 98 90 87 86 90 88 87 84 87 90 87 90 94 98 97 83 Engine 3 | . 14 14 14 14 7 9 9 9 6 5 . 3 5 5 5 5 5 5 4 . . . . . . . . . . . Reactor 2 | . . . . . . . . . . . . . . . . . . . . 4 5 5 4 3 4 4 3 4 3 3 Treads 15 | . . . . . 12 26 27 27 26 25 26 25 22 10 21 17 16 16 13 10 10 9 9 14 8 9 13 16 16 11 Wheel 2 | . 28 28 28 28 13 . . . . . . . . . . . . . . . . . . . . . . . . . Device 3 | . . . . . . . . . 6 6 1 3 4 . 10 11 9 9 8 10 7 3 2 2 3 3 . 1 4 8 Storage 20 | . 27 28 28 28 18 21 22 27 20 20 20 20 17 17 17 17 17 17 22 25 26 25 23 22 19 18 17 17 19 14 Processor 5 | . . . . . 8 9 8 . . . . 4 9 6 5 5 5 5 5 5 5 5 4 4 4 7 8 8 8 7 Hackware 14 | . . . . . . . . 9 6 6 11 7 8 16 1 . . . 5 7 8 14 19 24 29 27 34 32 31 25 Protection 2 | . . . . . 8 5 4 . 6 6 6 . 2 3 10 11 10 9 7 1 3 2 3 . . . . . . . Energy Gun 5 | . 28 14 5 . 6 12 11 9 6 12 1 13 9 2 . 4 4 4 7 2 6 3 5 1 3 6 3 . . . Energy Cannon 4 | . . . . . . . . . 3 6 6 3 . 5 2 . . 6 3 9 7 7 4 6 4 3 4 10 10 7 Ballistic Gun 2 | . . . 8 14 16 6 1 . . 3 6 1 . . 4 7 9 . . 3 3 3 3 1 3 3 . . . 2 Launcher 2 | . . 13 14 14 2 1 13 15 6 2 2 1 . 2 3 . . 6 1 2 . . . . . . . . . . Special Weapon 2 | . . . . . . . . 2 6 . 4 2 4 3 . . . . 2 . 1 2 2 2 1 2 3 3 4 2 Naked Turns . | . . . . . . . . . . . . . . . . . . . . . . . . . . . . . . . Heaviest Build 196 | 10 14 19 40 40 89 118 121 121 129 132 129 129 130 145 157 152 151 155 170 178 180 180 178 190 174 169 158 189 190 196 Greatest Support 160 | 20 20 20 20 20 20 60 60 60 83 85 82 92 110 110 130 135 135 131 131 160 160 160 150 150 150 150 138 138 126 137 Greatest Overweight (x) 8 | . . . 1 1 8 8 2 2 1 2 1 1 3 4 1 1 1 1 1 1 1 2 1 5 1 2 1 2 1 2 Average Overweight (x) 1 | . . . . 1 5 1 1 1 1 1 1 1 1 2 1 1 . 1 1 . . . 1 1 1 1 . 1 1 . Largest Inventory Capacity 36 | 6 8 10 16 16 22 28 28 28 28 28 28 28 28 28 28 28 28 28 34 34 34 34 34 36 34 34 34 34 34 34 Average Capacity 29 | 5 7 9 11 16 18 23 23 28 28 28 28 28 28 28 28 28 28 28 33 34 34 34 34 35 34 34 34 34 34 30 Most Carried 36 | 6 8 10 10 12 20 23 28 26 27 27 28 28 28 28 28 28 28 28 33 34 34 34 34 36 34 34 34 34 34 34 Average Carried 27 | 2 7 8 9 11 18 20 20 25 25 25 26 25 27 26 27 27 27 25 29 31 33 32 33 32 32 32 33 33 32 21 Final Capacity 34 | 6 8 10 16 16 20 28 28 28 28 28 28 28 28 28 28 28 28 28 34 34 34 34 34 34 34 34 34 34 34 4 Final Carried 34 | 6 8 10 10 12 20 20 25 26 27 26 28 28 26 28 28 28 26 28 31 34 32 34 34 34 27 34 34 34 34 2 Class Distribution -------------------- 37% | Botlord-Mutant 20% | Bothacker-Mutant 6% | Mutant 6% | Bothacker-Skirmisher 6% | Hauler-Mutant 5% | Botlord-Skirmisher 3% | Commander-Mutant Dominant Class ---------------- Mutant | -10/Materials Mutant | -10/Mines Mutant | -10/Exiles Mutant | -9/Mines Scavenger-Skirmisher | -8/Materials Hauler-Mutant | -8/Storage Hauler-Mutant | -8/Garrison Bothacker-Mutant | -8/Recycling Commander-Mutant | -6/Factory Bothacker-Mutant | -6/Garrison Bothacker-Mutant | -6/Factory Bothacker-Mutant | -6/Garrison Bothacker-Mutant | -5/Factory Bothacker-Mutant | -5/Extension Scavenger-Tank | -5/Cetus Scavenger-Mutant | -5/Archives Scavenger-Mutant | -5/Hub_04(d) Bothacker-Mutant | -5/Garrison Botlord-Mutant | -4/Factory Botlord-Mutant | -4/Garrison Botlord-Mutant | -4/Factory Botlord-Mutant | -4/Garrison Botlord-Mutant | -3/Research Botlord-Mutant | -3/Garrison Botlord-Mutant | -2/Research Botlord-Mutant | -2/Garrison Botlord-Mutant | -2/Research Botlord-Mutant | -2/Garrison Botlord-Mutant | -1/Access Botlord-Mutant | -1/Command Resources | -11 -10 -10 -10 -9 -8 -8 -8 -8 -6 -6 -6 -6 -5 -5 -5 -5 -5 -5 -4 -4 -4 -4 -3 -3 -2 -2 -2 -2 -1 -1 ----------- Run | Scr Mat Min Exi Min Mat Sto Gar Rec Fac Gar Fac Gar Fac Ext Cet Arc Hub Gar Fac Gar Fac Gar Res Gar Res Gar Res Gar Acc Com Matter Collected 9747 | 242 28 150 . 69 217 400 245 210 58 186 . 463 201 279 521 105 107 355 331 577 301 468 64 827 1011 733 148 701 282 468 Remotely . | . . . . . . . . . . . . . . . . . . . . . . . . . . . . . . . Salvage Created 12514 | 168 91 141 . 14 242 1180 598 15 . 761 89 898 82 1116 521 80 184 511 475 855 587 250 49 549 1679 343 87 131 277 541 Parts 602 | 12 4 19 . 2 15 82 40 1 . 34 3 26 3 35 32 3 8 21 24 36 25 10 4 21 87 12 6 8 8 21 Haulers Intercepted 7 | . . . . . 2 3 . . . . . . . . . . . . . . . . . . . . . . 2 . Recyclers Shooed 12 | 1 . . . . 1 2 . . . . . . . 3 . . . . 2 . . . . . 1 . . . . 2 Parts Field Recycled . | . . . . . . . . . . . . . . . . . . . . . . . . . . . . . . . Retrieved Matter . | . . . . . . . . . . . . . . . . . . . . . . . . . . . . . . . Parts Self-Destructed . | . . . . . . . . . . . . . . . . . . . . . . . . . . . . . . . Prevented . | . . . . . . . . . . . . . . . . . . . . . . . . . . . . . . . Kills | -11 -10 -10 -10 -9 -8 -8 -8 -8 -6 -6 -6 -6 -5 -5 -5 -5 -5 -5 -4 -4 -4 -4 -3 -3 -2 -2 -2 -2 -1 -1 ------- Run | Scr Mat Min Exi Min Mat Sto Gar Rec Fac Gar Fac Gar Fac Ext Cet Arc Hub Gar Fac Gar Fac Gar Res Gar Res Gar Res Gar Acc Com Combat Hostiles Destroyed 213 | . 2 9 . 1 3 19 19 1 . 16 1 19 2 5 14 . 2 17 11 17 8 2 1 3 22 5 1 2 1 10 Melee 1 | . . . . . . . . . . . 1 . . . . . . . . . . . . . . . . . . . Guns 76 | . 2 3 . . 3 12 2 . . 4 . 5 2 1 2 . 2 3 3 3 4 . . 3 13 4 . 1 . 4 Cannons 41 | . . . . . . . . . . 3 . 2 . 4 4 . . 4 2 3 1 1 1 . 7 1 1 1 1 5 AOE 84 | . . 6 . 1 . 6 17 1 . 8 . 9 . . 8 . . 10 6 10 1 . . . 1 . . . . . Classes Destroyed 18 | 2 1 3 . . 3 1 . 1 . 1 . 1 1 1 . . . 1 . 1 . . . . . . . . . 1 Worker 16 | . . 1 . . . 3 . . . . . . 1 . . . 1 . . . . . . . 8 . . . 1 1 Builder 8 | . . 1 . . . 4 . . . . . . . . . . . . 1 . . . . . 2 . . . . . Tunneler 6 | 5 . 1 . . . . . . . . . . . . . . . . . . . . . . . . . . . . Hauler 7 | . . . . . 2 3 . . . . . . . . . . . . . . . . . . . . . . 2 . Recycler 9 | 1 . . . . . 1 . . . . . . . 6 . . . . . . 1 . . . . . . . . . Operator 5 | . . . . . . . . . . . . . 1 1 . 2 . . . . . . . . . . . . . 1 Drone 1 | . . . . . . . . 1 . . . . . . . . . . . . . . . . . . . . . . Watcher 4 | . . . . . . 1 . . . . 1 . . . . . 1 . . . 1 . . . . . . . . . Swarmer 73 | . . 9 . . . 7 11 . . 7 . 9 2 . 5 . . 7 4 4 . . . . 2 1 . . . 5 Grunt 61 | . 2 . . 1 . 6 5 . . 7 1 7 . 1 2 . 1 6 4 8 1 1 . . 8 . . . . . Brawler 4 | . . . . . . . . . . 1 . 1 . . . . . 1 1 . . . . . . . . . . . Duelist 5 | . . . . . . . . . . . . 1 . 1 . . . . 1 . . . . . 2 . . . . . Sentry 21 | . . . . . 2 6 2 . . 1 . 1 . 1 . . 1 1 . 4 . . . 1 . . 1 . . . Specialist 1 | . . . . . . . . . . . . . . . . . . 1 . . . . . . . . . . . . Hunter 20 | . . . . . 1 . 1 . . . . . . . 1 . . 1 . . 3 2 1 . 5 2 . . 1 2 Programmer 19 | . . . . . . . . . . . . . . 2 . . . . 1 . 4 . . 2 5 2 . 2 . 1 Behemoth 2 | . . . . . . . . . . . . . . . . . . . . 1 . . . 1 . . . . . . Cetus Guard 6 | . . . . . . . . . . . . . . . 6 . . . . . . . . . . . . . . . Striker 2 | . . . . . . . . . . . . . . . . . . . . . . . . . . . . . . 2 Best Kill Streak 11 | 5 1 4 . 1 1 11 7 1 . 4 1 4 2 5 6 2 2 6 4 4 3 2 1 2 9 2 1 2 1 4 Combat Bots Only 8 | . 1 3 . 1 1 8 7 1 . 4 1 4 2 2 6 . 2 6 4 4 2 2 1 2 4 2 1 2 1 3 Max Kills in Single Turn 5 | 1 1 2 . 1 1 4 4 1 . 2 1 2 1 1 3 1 2 4 2 4 1 1 1 1 5 1 1 1 1 2 Gunslinging 1 | . . . . . . . . . . . . . . . . . . . . . . . . . 1 . . . . . Exploded 4 | . . 2 . 1 . 2 4 1 . 2 . 1 . . 3 . . 4 2 4 1 . . . 1 . . . . . Melee 1 | . . . . . . . . . . . 1 . . . . . . . . . . . . . . . . . . . Uniques/NPCs Destroyed . | . . . . . . . . . . . . . . . . . . . . . . . . . . . . . . . Combat | -11 -10 -10 -10 -9 -8 -8 -8 -8 -6 -6 -6 -6 -5 -5 -5 -5 -5 -5 -4 -4 -4 -4 -3 -3 -2 -2 -2 -2 -1 -1 -------- Run | Scr Mat Min Exi Min Mat Sto Gar Rec Fac Gar Fac Gar Fac Ext Cet Arc Hub Gar Fac Gar Fac Gar Res Gar Res Gar Res Gar Acc Com Damage Taken 29099 | . 147 202 . 56 186 1424 230 18 478 416 133 1308 770 109 1520 160 1700 504 1689 1702 971 434 501 2552 3789 1166 78 575 558 5723 Core 3396 | . 37 59 . . 32 140 14 . 18 7 . 168 99 . 76 . 41 . 76 181 48 77 60 241 235 89 . 85 25 1588 Absorbed by Shields 1427 | . . . . . . . . 3 . . . . . 88 297 . . 61 106 142 . . 5 102 38 165 . 166 118 136 Reduced by Siege Mode 771 | . . . . . . . . . . . . . . . . . . . 38 98 70 . . 72 298 91 . . . 104 Core Remaining (%) 74 | 100 . . . 61 . . . 66 . . . 77 . . . . . 78 . . . 66 . 76 . . . 71 . . Volleys Fired 831 | 17 12 19 . 3 15 38 16 27 2 23 4 56 20 37 22 19 7 27 35 40 40 17 8 59 87 63 7 33 33 45 Largest 4 | 2 2 2 . 2 3 3 3 3 1 4 1 4 3 3 4 4 4 3 3 4 4 2 4 4 4 4 2 4 3 4 Hottest 363 | 90 90 90 . 50 118 176 162 135 30 270 69 296 166 230 285 212 178 249 244 363 348 220 300 302 315 360 207 360 360 343 Shots Fired 1596 | 34 24 34 . 6 33 84 32 30 2 58 4 93 28 72 63 36 19 46 61 102 90 29 14 118 205 105 9 42 40 83 Gun 805 | 34 24 24 . 3 33 76 15 1 . 38 . 48 12 7 15 26 13 13 31 43 48 10 6 65 131 54 2 7 . 26 Cannon 440 | . . . . . . . . . . 11 2 12 . 58 41 10 4 20 18 44 27 13 4 31 46 22 2 12 15 48 Launcher 103 | . . 10 . 3 . 8 17 4 . 9 . 18 . . 6 . 2 13 4 7 . . . . 2 . . . . . Special 248 | . . . . . . . . 25 2 . 2 15 16 7 1 . . . 8 8 15 6 4 22 26 29 5 23 25 9 Kinetic 417 | . . . . 3 26 38 2 . . 9 . 2 4 5 50 16 12 . 5 28 20 8 2 43 84 16 . 2 . 42 Thermal 615 | 34 24 24 . . 7 22 13 1 . 29 . 43 8 34 2 . . 27 30 38 41 4 8 37 61 60 4 17 15 32 Explosive 47 | . . 10 . 3 . . . . . . . . . . 6 . 2 13 4 7 . . . . 2 . . . . . Electromagnetic 269 | . . . . . . 24 17 4 . 20 2 33 . 26 4 20 5 6 14 21 14 11 . 16 32 . . . . . Robot Hit Streak 35 | 8 8 7 . 1 6 15 11 17 10 17 3 9 14 26 23 20 14 15 15 16 15 15 19 16 35 26 7 18 31 9 Robot Miss Streak 7 | 2 2 2 . 1 3 2 1 3 . 3 1 2 2 1 1 2 . 2 2 4 2 1 1 2 3 2 1 2 2 7 Penetration Max 1 | . . . . . . 1 . . . . . . . . 1 . . . . . . . . 1 1 . . . . 1 Secondary Targets 5 | . . . . . . 1 . . . . . 1 . . . . . . . . 1 . . . 2 . . . . . Max Gunslinging Chain 1 | . . . . . . 1 . . . . . 1 . . . . . . . . 1 . . . 1 . . . . . Capacitor 6 | . . . . . . . . . . . . . . . . . . . . . . . . . . . . . . 6 Shots Hit Robots 1135 | 21 19 20 . 3 22 69 21 25 2 33 10 57 21 55 39 30 12 27 48 69 71 18 9 84 149 76 7 30 34 54 Core Hits 534 | 7 6 20 . 5 10 47 25 1 . 29 3 32 4 21 35 13 20 31 30 40 21 6 2 12 69 16 4 3 4 18 Critical Hits 54 | . . . . . . . . . . . . 1 . . 10 . . . 4 5 4 1 . 6 11 3 . 1 3 5 Critical Kills 21 | . . . . . . . . . . . . . . . 4 . . . 2 1 1 1 . 1 4 1 . 1 1 4 Critical Parts Destroyed 25 | . . . . . . . . . . . . 1 . . 5 . . . 2 1 3 . . 3 7 1 . . 1 1 Melee Attacks 124 | . . . . . . 51 . . . . 11 24 15 1 . . . . 6 1 . . 4 . 7 . 3 1 . . Impact 6 | . . . . . . 6 . . . . . . . . . . . . . . . . . . . . . . . . Slashing 118 | . . . . . . 45 . . . . 11 24 15 1 . . . . 6 1 . . 4 . 7 . 3 1 . . Piercing . | . . . . . . . . . . . . . . . . . . . . . . . . . . . . . . . Sneak Attacks 7 | . . . . . . 5 . . . . . . 1 1 . . . . . . . . . . . . . . . . Combat Hostiles . | . . . . . . . . . . . . . . . . . . . . . . . . . . . . . . . Follow-up Attacks . | . . . . . . . . . . . . . . . . . . . . . . . . . . . . . . . Damage Inflicted 36267 | 259 223 819 . 244 329 2319 1157 120 32 1520 343 1980 243 1599 2278 778 848 2009 2226 2949 1854 356 164 1633 5847 1512 138 347 584 1557 Guns 13234 | 259 223 175 . 33 329 1025 148 . . 460 . 497 75 101 280 523 218 297 945 802 895 101 94 1004 2878 1137 57 183 . 495 Cannons 10037 | . . . . . . . . . . 165 96 181 . 1369 676 250 60 316 265 1215 887 255 70 629 1337 375 81 164 584 1062 Explosions 11724 | . . 637 . 211 . 693 1009 120 . 895 . 1265 . . 1322 . 570 1396 1016 932 72 . . . 1586 . . . . . Melee 1153 | . . . . . . 578 . . . . 247 31 168 129 . . . . . . . . . . . . . . . . Ramming 119 | . . 7 . . . 23 . . 32 . . 6 . . . 5 . . . . . . . . 46 . . . . . Kinetic 6880 | . . . . 33 185 379 32 . . 87 . 23 20 135 802 384 198 . 159 566 296 101 23 829 1581 279 . 62 . 706 Thermal 13629 | 259 223 175 . . 144 514 242 . . 569 . 762 55 702 50 . . 556 865 1067 1120 36 141 481 2577 1233 138 285 584 851 Explosive 6724 | . . 637 . 211 . 91 . . . . . . . . 1322 . 349 1396 1016 932 . . . . 770 . . . . . Electromagnetic 7762 | . . . . . . 734 883 120 . 864 96 1158 . 633 104 389 301 57 186 384 438 219 . 323 873 . . . . . Impact 120 | . . . . . . 120 . . . . . . . . . . . . . . . . . . . . . . . . Slashing 1033 | . . . . . . 458 . . . . 247 31 168 129 . . . . . . . . . . . . . . . . Piercing . | . . . . . . . . . . . . . . . . . . . . . . . . . . . . . . . Highest Corruption 22 | . 2 2 2 2 1 2 4 4 . . . 3 . . . . 22 22 3 3 12 12 3 7 4 4 4 4 . 7 Average Corruption 5 | . 2 2 2 2 1 1 3 4 . . . 2 . . . . 11 22 2 3 7 12 3 6 2 4 4 4 . 5 Corruption Purged . | . . . . . . . . . . . . . . . . . . . . . . . . . . . . . . . Effects 493 | . 2 10 3 6 4 15 25 9 . . . 13 . . . . 2 68 6 27 28 61 1 83 18 48 9 52 . 3 Message Errors 122 | . 1 3 . 3 2 7 5 2 . . . 2 . . . . 1 15 3 5 4 13 . 20 3 16 2 15 . . Matter Fused 91 | . . . . . . . 10 2 . . . 3 . . . . 1 7 . 12 2 9 . 19 1 11 . 13 . 1 Heat Flow Errors 66 | . . 2 1 1 . . 3 4 . . . 2 . . . . . 12 1 1 5 5 . 11 2 5 3 7 . 1 Energy Discharges 61 | . . 3 2 . 1 3 3 . . . . 3 . . . . . 4 . 4 3 6 . 7 5 4 1 11 . 1 Parts Rejected 3 | . . . . . . . . . . . . . . . . . . . . . 1 . . . . 1 . 1 . . Data Loss (minor) 52 | . 1 2 . 2 1 1 4 . . . . . . . . . . 5 2 2 3 7 1 12 1 4 2 2 . . Data Loss (major) 14 | . . . . . . . . . . . . . . . . . . 3 . . 3 5 . 3 . . . . . . Misfires 7 | . . . . . . . . . . . . . . . . . . 1 . . . 4 . 2 . . . . . . Misdirections 19 | . . . . . . . . . . . . . . . . . . 10 . . 1 8 . . . . . . . . Targeting Errors 51 | . . . . . . 4 . 1 . . . 3 . . . . . 7 . 2 6 3 . 9 5 7 1 3 . . Weapon Failures 7 | . . . . . . . . . . . . . . . . . . 4 . 1 . 1 . . 1 . . . . . Overload Shots . | . . . . . . . . . . . . . . . . . . . . . . . . . . . . . . . Overflow Damage 864 | . . 27 . . . 126 36 32 . 1 29 3 . 125 25 . 13 63 61 . 57 . . . 243 5 . . . 18 Projectiles 155 | . . . . . . . . . . . 13 . . 26 . . . . . . 57 . . . 36 5 . . . 18 Explosions 469 | . . 27 . . . 1 36 32 . 1 . 3 . . 25 . 13 63 61 . . . . . 207 . . . . . Melee 240 | . . . . . . 125 . . . . 16 . . 99 . . . . . . . . . . . . . . . . Knockbacks 10 | . . . . . . . . . . . . . . . 4 . . . . . . . . 3 . . . . . 3 Impact . | . . . . . . . . . . . . . . . . . . . . . . . . . . . . . . . Kinetic 9 | . . . . . . . . . . . . . . . 3 . . . . . . . . 3 . . . . . 3 Secondary 1 | . . . . . . . . . . . . . . . 1 . . . . . . . . . . . . . . . Self-Inflicted Damage 831 | . . 6 . 41 . 70 61 . . 41 . 116 . . . . 106 48 173 37 . . . . 132 . . . . . Shots 30 | . . 1 . 2 . 2 5 . . 2 . 7 . . . . 1 3 2 2 . . . . 3 . . . . . Rammed 12 | . . 1 . . . 4 . . 3 . . 1 . . . 1 . . . . . . . . 2 . . . . . Targets Rammed 12 | . . 1 . . . 4 . . 3 . . 1 . . . 1 . . . . . . . . 2 . . . . . Kicked . | . . . . . . . . . . . . . . . . . . . . . . . . . . . . . . . Crushed . | . . . . . . . . . . . . . . . . . . . . . . . . . . . . . . . Highest Temperature 621 | 240 224 220 169 245 247 323 207 260 . 237 24 316 48 282 371 264 289 443 426 195 424 256 362 621 362 333 183 480 265 450 Average Temperature 108 | 99 96 60 89 100 100 123 58 71 . 84 10 120 18 101 91 110 121 95 128 93 170 88 124 185 78 109 59 87 81 124 Received Heat Transfer 2654 | . 81 . . 6 27 414 27 . 120 135 63 243 210 6 192 18 30 39 126 205 45 39 . 195 312 18 9 33 43 18 Effects 49 | . . . . . . 1 . 1 . . . . . 2 1 . . 7 3 . 7 . . 21 . 2 . 2 . 2 Shutdowns 11 | . . . . . . . . . . . . . . . 1 . . . 1 . 3 . . 5 . . . 1 . . Energy Bleed 9 | . . . . . . 1 . . . . . . . . . . . . 1 . 3 . . 2 . . . 1 . 1 Interference 12 | . . . . . . . . 1 . . . . . 2 . . . 3 . . 1 . . 3 . 2 . . . . Matter Decay 3 | . . . . . . . . . . . . . . . . . . . . . . . . 3 . . . . . . Short Circuit 2 | . . . . . . . . . . . . . . . . . . . . . . . . 1 . . . . . 1 Damage (minor) 3 | . . . . . . . . . . . . . . . . . . . 1 . . . . 2 . . . . . . Damage (major) 8 | . . . . . . . . . . . . . . . . . . 4 . . . . . 4 . . . . . . Damage (core) 1 | . . . . . . . . . . . . . . . . . . . . . . . . 1 . . . . . . Siege Activations 28 | . . . . . . . . . . . . . . . . . . . 2 6 4 3 1 2 6 2 . . . 2 Total Turns 531 | . . . . . . . . . . . . . . . . . . . 71 94 70 32 6 18 165 55 . . . 20 Longest Duration 61 | . . . . . . . . . . . . . . . . . . . 44 34 30 19 6 12 61 31 . . . 15 Robots Corrupted 13 | . . . . . . 1 . . . 1 . 3 . 1 . . . . . 1 2 1 . 2 1 . . . . . Combat Hostiles 10 | . . . . . . 1 . . . 1 . 3 . . . . . . . 1 2 1 . . 1 . . . . . Parts Fried 47 | . . . . . . 1 5 . . 5 4 6 . 2 1 4 2 . 1 1 4 2 . 3 6 . . . . . Impact Corruptions . | . . . . . . . . . . . . . . . . . . . . . . . . . . . . . . . Robots Melted . | . . . . . . . . . . . . . . . . . . . . . . . . . . . . . . . Combat Hostiles . | . . . . . . . . . . . . . . . . . . . . . . . . . . . . . . . Parts Melted 20 | 1 . 1 . . 1 1 1 . . 1 . 1 . . . . . . 1 . 1 . 1 3 2 3 . 2 . . Heat Transferred 17594 | 670 607 435 . . 259 953 381 . . 890 . 1189 111 1261 100 . . 844 1075 1213 1311 27 185 833 2387 969 148 258 518 970 Parts Sabotaged . | . . . . . . . . . . . . . . . . . . . . . . . . . . . . . . . Parts Stolen . | . . . . . . . . . . . . . . . . . . . . . . . . . . . . . . . Parts Stripped . | . . . . . . . . . . . . . . . . . . . . . . . . . . . . . . . Power Chain Reactions 23 | . . . . . . 8 5 . . 3 . 5 . . . . . . . . 1 . . . 1 . . . . . Missiles Intercepted . | . . . . . . . . . . . . . . . . . . . . . . . . . . . . . . . Alert | -11 -10 -10 -10 -9 -8 -8 -8 -8 -6 -6 -6 -6 -5 -5 -5 -5 -5 -5 -4 -4 -4 -4 -3 -3 -2 -2 -2 -2 -1 -1 ------- Run | Scr Mat Min Exi Min Mat Sto Gar Rec Fac Gar Fac Gar Fac Ext Cet Arc Hub Gar Fac Gar Fac Gar Res Gar Res Gar Res Gar Acc Com Peak Influence 1171 | 30 87 268 . 93 180 381 813 460 1045 1065 574 836 588 660 929 552 825 1171 649 997 709 235 132 448 502 513 369 585 478 205 Average Influence 362 | 14 51 132 . 32 77 164 549 364 982 894 466 475 348 173 560 507 388 983 565 696 413 170 59 223 155 364 342 380 199 71 Maximum Alert Level 4 | . . 1 . . . 1 3 2 3 3 2 3 2 2 3 2 3 4 2 3 3 1 . 2 2 2 1 2 2 1 Low Security (%) 34 | 100 100 92 . 100 100 70 3 . . . . . 15 60 . . . . . . 6 93 100 49 70 7 . 4 60 94 Level 1 27 | . . 7 . . . 29 7 91 . . 36 41 35 22 34 10 77 . . . 46 6 . 33 29 64 100 49 26 5 Level 2 26 | . . . . . . . 63 8 . 7 63 42 49 16 36 89 . 7 100 60 42 . . 17 . 28 . 46 12 . Level 3 11 | . . . . . . . 25 . 100 92 . 15 . . 29 . 22 67 . 39 4 . . . . . . . . . Level 4 . | . . . . . . . . . . . . . . . . . . 24 . . . . . . . . . . . . Level 5 . | . . . . . . . . . . . . . . . . . . . . . . . . . . . . . . . High Security . | . . . . . . . . . . . . . . . . . . . . . . . . . . . . . . . Max Security . | . . . . . . . . . . . . . . . . . . . . . . . . . . . . . . . Squads Dispatched 44 | . 1 . . . 1 . . . 6 . 1 . 1 2 . . 3 . 2 . 3 . 3 . 8 . 1 . 10 2 Investigation 4 | . . . . . 1 . . . . . 1 . . 1 . . . . . . . . 1 . . . . . . . Extermination 11 | . . . . . . . . . 1 . . . . . . . . . 1 . 2 . . . 2 . . . 3 2 Reinforcement 16 | . 1 . . . . . . . 1 . . . 1 1 . . 2 . . . 1 . 2 . 4 . . . 3 . Assault 2 | . . . . . . . . . . . . . . . . . . . 1 . . . . . 1 . . . . . Garrison 11 | . . . . . . . . . 4 . . . . . . . 1 . . . . . . . 1 . 1 . 4 . Intercept . | . . . . . . . . . . . . . . . . . . . . . . . . . . . . . . . Construction Impeded 4 | . . . . . . . . . 1 . . . . . . . . . . . . . 1 . 1 . . . 1 . Haulers Reinforced 2 | . . . . . . . . . . . . . . . . . . . . . . . . . 1 . . . 1 . Alert ID Control Effect 119 | . . . . . . . . . . . . . . . . . . . 2 . . 4 3 14 17 6 5 14 48 6 Stealth | -11 -10 -10 -10 -9 -8 -8 -8 -8 -6 -6 -6 -6 -5 -5 -5 -5 -5 -5 -4 -4 -4 -4 -3 -3 -2 -2 -2 -2 -1 -1 --------- Run | Scr Mat Min Exi Min Mat Sto Gar Rec Fac Gar Fac Gar Fac Ext Cet Arc Hub Gar Fac Gar Fac Gar Res Gar Res Gar Res Gar Acc Com Distress Signals 22 | . . . . . 3 1 . . . . . . . 2 2 . 1 . 2 . 3 . . . 4 . . . 3 1 Communications Jammed . | . . . . . . . . . . . . . . . . . . . . . . . . . . . . . . . Distress Signals . | . . . . . . . . . . . . . . . . . . . . . . . . . . . . . . . Times Spotted 570 | . 4 11 . 3 6 26 18 3 8 15 5 34 21 24 26 11 23 17 23 14 16 6 2 37 64 29 6 29 42 47 Peak Tracking Total 21 | . 2 3 . 3 3 5 6 1 7 4 3 7 9 5 9 2 21 6 7 3 3 2 2 9 11 4 3 4 6 16 Tactical Retreats 35 | . . . . . . 2 . . . 3 3 7 . . . . . 1 1 1 1 . . 4 6 2 . . 1 3 Traps | -11 -10 -10 -10 -9 -8 -8 -8 -8 -6 -6 -6 -6 -5 -5 -5 -5 -5 -5 -4 -4 -4 -4 -3 -3 -2 -2 -2 -2 -1 -1 ------- Run | Scr Mat Min Exi Min Mat Sto Gar Rec Fac Gar Fac Gar Fac Ext Cet Arc Hub Gar Fac Gar Fac Gar Res Gar Res Gar Res Gar Acc Com Traps Triggered 90 | . 1 . . . 1 . 6 . 1 11 . 12 1 3 . . 1 7 . 9 1 2 1 10 1 7 3 11 . 1 Indirectly 8 | . . . . . . . 1 . . 4 . 3 . . . . . . . . . . . . . . . . . . Trap Hack Attempts . | . . . . . . . . . . . . . . . . . . . . . . . . . . . . . . . Triggered . | . . . . . . . . . . . . . . . . . . . . . . . . . . . . . . . Disarmed . | . . . . . . . . . . . . . . . . . . . . . . . . . . . . . . . Reprogrammed . | . . . . . . . . . . . . . . . . . . . . . . . . . . . . . . . Reused . | . . . . . . . . . . . . . . . . . . . . . . . . . . . . . . . Traps Extracted . | . . . . . . . . . . . . . . . . . . . . . . . . . . . . . . . Installed . | . . . . . . . . . . . . . . . . . . . . . . . . . . . . . . . Triggered 2 | . . . . . . . . . . . . . . . . . . . . . 2 . . . . . . . . . Machines | -11 -10 -10 -10 -9 -8 -8 -8 -8 -6 -6 -6 -6 -5 -5 -5 -5 -5 -5 -4 -4 -4 -4 -3 -3 -2 -2 -2 -2 -1 -1 ---------- Run | Scr Mat Min Exi Min Mat Sto Gar Rec Fac Gar Fac Gar Fac Ext Cet Arc Hub Gar Fac Gar Fac Gar Res Gar Res Gar Res Gar Acc Com Machines Disabled 86 | . . 2 . . . 5 4 . . 2 . 5 2 5 2 2 18 4 4 4 3 3 . 6 2 5 . 6 . 2 Max in Single Turn 14 | . . 1 . . . 1 1 . . 1 . 1 . 1 1 1 14 1 2 1 2 1 . 1 1 1 . 1 . 1 Garrison Access 1 | . . . . . . . . . . . . . . . . . . . . . . . . . 1 . . . . . Garrison Relay 30 | . . . . . . . 3 . . 2 . 4 . . . . . 2 . 3 . 3 . 4 . 4 . 5 . . Network Hub 1 | . . . . . . . . . . . . . . . . . 1 . . . . . . . . . . . . . Machines Sabotaged . | . . . . . . . . . . . . . . . . . . . . . . . . . . . . . . . Garrisons Compromised . | . . . . . . . . . . . . . . . . . . . . . . . . . . . . . . . Overloaded Fab Kills . | . . . . . . . . . . . . . . . . . . . . . . . . . . . . . . . Fab Network Shutdowns . | . . . . . . . . . . . . . . . . . . . . . . . . . . . . . . . Hacking | -11 -10 -10 -10 -9 -8 -8 -8 -8 -6 -6 -6 -6 -5 -5 -5 -5 -5 -5 -4 -4 -4 -4 -3 -3 -2 -2 -2 -2 -1 -1 --------- Run | Scr Mat Min Exi Min Mat Sto Gar Rec Fac Gar Fac Gar Fac Ext Cet Arc Hub Gar Fac Gar Fac Gar Res Gar Res Gar Res Gar Acc Com Machines Accessed 71 | . 1 . 1 1 3 10 . 3 2 . 4 . 6 7 1 1 1 . 4 . 2 . 1 . 5 . 3 . 6 9 Terminals 49 | . 1 . . . 2 9 . 3 . . 2 . 6 7 1 . . . 1 . . . . . 3 . . . 6 8 Fabricators 2 | . . . . . . . . . . . . . . . . . . . 1 . . . . . . . 1 . . . Repair Stations 2 | . . . . . . . . . . . . . . . . . . . 1 . . . . . . . . . . 1 Recycling Units . | . . . . . . . . . . . . . . . . . . . . . . . . . . . . . . . Scanalyzers 5 | . . . . . 1 . . . 1 . 1 . . . . . . . . . 1 . . . . . 1 . . . Garrison Access 10 | . . . . . . 1 . . 1 . 1 . . . . . 1 . 1 . 1 . 1 . 2 . 1 . . . Total Hacks 217 | . 2 . 1 1 10 35 . 10 5 . 8 . 21 16 3 17 1 . 12 . 4 . 1 . 12 . 8 . 28 22 Successful 120 | . 1 . 1 1 6 23 . 3 4 . 5 . 11 12 . 17 1 . 5 . 3 . 1 . 4 . 3 . 11 8 Failed 97 | . 1 . . . 4 12 . 7 1 . 3 . 10 4 3 . . . 7 . 1 . . . 8 . 5 . 17 14 Catastrophic 30 | . . . . . 2 4 . 2 . . 2 . 3 . . . . . 2 . . . . . 4 . . . 7 4 Database Lockouts . | . . . . . . . . . . . . . . . . . . . . . . . . . . . . . . . Manual 107 | . 2 . 1 . 5 21 . 8 . . 4 . 11 6 2 . . . 1 . . . . . 5 . . . 23 18 Terminals 154 | . 2 . . . 5 33 . 10 . . 5 . 21 16 3 . . . 1 . . . . . 10 . . . 28 20 Fabricators 11 | . . . . . . . . . . . . . . . . . . . 5 . . . . . . . 6 . . . Repair Stations 7 | . . . . . . . . . . . . . . . . . . . 5 . . . . . . . . . . 2 Recycling Units . | . . . . . . . . . . . . . . . . . . . . . . . . . . . . . . . Scanalyzers 15 | . . . . . 5 . . . 4 . 2 . . . . . . . . . 3 . . . . . 1 . . . Garrison Access 11 | . . . . . . 2 . . 1 . 1 . . . . . 1 . 1 . 1 . 1 . 2 . 1 . . . Terminal Hacks 60 | . . . 1 1 . 12 . 1 . . 4 . 8 8 . 17 . . . . . . . . . . . . 5 3 Record 21 | . . . . . . . . . . . 1 . . 2 . 17 . . . . . . . . . . . . . 1 Part Schematic 3 | . . . . . . 1 . . . . . . . 2 . . . . . . . . . . . . . . . . Robot Analysis 2 | . . . . . . 1 . . . . . . 1 . . . . . . . . . . . . . . . . . Prototype ID Bank 2 | . . . . . . . . . . . . . 1 1 . . . . . . . . . . . . . . . . Open Door 10 | . . . . 1 . 2 . . . . . . 1 2 . . . . . . . . . . . . . . 4 . Level Access Points 2 | . . . . . . 1 . 1 . . . . . . . . . . . . . . . . . . . . . . Branch Access Points 3 | . . . . . . . . . . . 1 . 1 . . . . . . . . . . . . . . . 1 . Terminal Index 3 | . . . . . . 1 . . . . . . 1 . . . . . . . . . . . . . . . . 1 Garrison Index 1 | . . . . . . 1 . . . . . . . . . . . . . . . . . . . . . . . . Unreport Threat 2 | . . . . . . . . . . . 2 . . . . . . . . . . . . . . . . . . . Locate Traps 4 | . . . . . . 1 . . . . . . 2 1 . . . . . . . . . . . . . . . . Recall Reinforcements 1 | . . . . . . . . . . . . . 1 . . . . . . . . . . . . . . . . . Registered Components 1 | . . . . . . 1 . . . . . . . . . . . . . . . . . . . . . . . . Registered Prototypes 1 | . . . . . . 1 . . . . . . . . . . . . . . . . . . . . . . . . Zone Layout 2 | . . . . . . 2 . . . . . . . . . . . . . . . . . . . . . . . . EX-Prototype ID Bank 1 | . . . 1 . . . . . . . . . . . . . . . . . . . . . . . . . . . Disengage Seal 1 | . . . . . . . . . . . . . . . . . . . . . . . . . . . . . . 1 Fabricator Hacks 2 | . . . . . . . . . . . . . . . . . . . 1 . . . . . . . 1 . . . Load Schematic 2 | . . . . . . . . . . . . . . . . . . . 1 . . . . . . . 1 . . . Repair Station Hacks 3 | . . . . . . . . . . . . . . . . . . . 3 . . . . . . . . . . . Scan Component 2 | . . . . . . . . . . . . . . . . . . . 2 . . . . . . . . . . . Repair 1 | . . . . . . . . . . . . . . . . . . . 1 . . . . . . . . . . . Recycling Unit Hacks . | . . . . . . . . . . . . . . . . . . . . . . . . . . . . . . . Scanalyzer 10 | . . . . . 4 . . . 3 . . . . . . . . . . . 2 . . . . . 1 . . . Insert Component 6 | . . . . . 2 . . . 2 . . . . . . . . . . . 1 . . . . . 1 . . . Analyze 4 | . . . . . 2 . . . 1 . . . . . . . . . . . 1 . . . . . . . . . Garrison Access Hacks 10 | . . . . . . 1 . . 1 . 1 . . . . . 1 . 1 . 1 . 1 . 2 . 1 . . . Unlock Access 10 | . . . . . . 1 . . 1 . 1 . . . . . 1 . 1 . 1 . 1 . 2 . 1 . . . Unauthorized Hacks 99 | . 3 . . . 4 22 . 7 . . . . 7 10 . . . . 1 . . . . . 7 . . . 19 19 Terminals 35 | . 1 . . . 2 10 . 2 . . . . 3 4 . . . . . . . . . . 2 . . . 6 5 Track 6 | . 1 . . . 1 2 . 1 . . . . . . . . . . . . . . . . . . . . 1 . Botnet 26 | . . . . . 1 8 . 1 . . . . 2 4 . . . . . . . . . . 2 . . . 4 4 Disrupt 3 | . . . . . . . . . . . . . 1 . . . . . . . . . . . . . . . 1 1 Fabricators . | . . . . . . . . . . . . . . . . . . . . . . . . . . . . . . . Repair Stations . | . . . . . . . . . . . . . . . . . . . . . . . . . . . . . . . Recycling Units . | . . . . . . . . . . . . . . . . . . . . . . . . . . . . . . . Scanalyzers . | . . . . . . . . . . . . . . . . . . . . . . . . . . . . . . . Garrison Access . | . . . . . . . . . . . . . . . . . . . . . . . . . . . . . . . Data Cores Recovered 3 | . . . . . . . . . . . . . 1 1 . . . . . . . . . . . . . . 1 . Used 3 | . . . . . . . . . . . . . 1 1 . . . . . . . . . . . . . . 1 . Hacking Detections 52 | . 1 . . . 2 8 . 3 1 . 4 . 4 6 1 . . . 3 . 1 . 1 . 3 . 1 . 5 8 Full Trace Events 3 | . . . . . 1 . . . . . 1 . . 1 . . . . . . . . . . . . . . . . Feedback Events . | . . . . . . . . . . . . . . . . . . . . . . . . . . . . . . . Feedback Blocked . | . . . . . . . . . . . . . . . . . . . . . . . . . . . . . . . Robot Schematics Acquired . | . . . . . . . . . . . . . . . . . . . . . . . . . . . . . . . Robots Built . | . . . . . . . . . . . . . . . . . . . . . . . . . . . . . . . Matter . | . . . . . . . . . . . . . . . . . . . . . . . . . . . . . . . Time . | . . . . . . . . . . . . . . . . . . . . . . . . . . . . . . . Total Robot Build Rating . | . . . . . . . . . . . . . . . . . . . . . . . . . . . . . . . Part Schematics Acquired 7 | . . . . . 2 1 . . 1 . . . . 2 . . . . . . 1 . . . . . . . . . Parts Built . | . . . . . . . . . . . . . . . . . . . . . . . . . . . . . . . Matter . | . . . . . . . . . . . . . . . . . . . . . . . . . . . . . . . Time . | . . . . . . . . . . . . . . . . . . . . . . . . . . . . . . . Total Part Build Rating . | . . . . . . . . . . . . . . . . . . . . . . . . . . . . . . . Parts Repaired 1 | . . . . . . . . . . . . . . . . . . . 1 . . . . . . . . . . . Time 136 | . . . . . . . . . . . . . . . . . . . 136 . . . . . . . . . . . Parts Recycled . | . . . . . . . . . . . . . . . . . . . . . . . . . . . . . . . Recycled Matter . | . . . . . . . . . . . . . . . . . . . . . . . . . . . . . . . Retrieved Matter . | . . . . . . . . . . . . . . . . . . . . . . . . . . . . . . . Retrieved Components . | . . . . . . . . . . . . . . . . . . . . . . . . . . . . . . . Parts Scanalyzed 4 | . . . . . 2 . . . 1 . . . . . . . . . . . 1 . . . . . . . . . Part Schematics Acquired 4 | . . . . . 2 . . . 1 . . . . . . . . . . . 1 . . . . . . . . . Parts Damaged 1 | . . . . . . . . . . . . . . . . . . . . . 1 . . . . . . . . . Bothacking | -11 -10 -10 -10 -9 -8 -8 -8 -8 -6 -6 -6 -6 -5 -5 -5 -5 -5 -5 -4 -4 -4 -4 -3 -3 -2 -2 -2 -2 -1 -1 ------------ Run | Scr Mat Min Exi Min Mat Sto Gar Rec Fac Gar Fac Gar Fac Ext Cet Arc Hub Gar Fac Gar Fac Gar Res Gar Res Gar Res Gar Acc Com Used RIF Installer 9 | . . . . . . . 1 . . 1 . 1 . . . . . 1 . 1 . 1 . 1 . 1 . 1 . . Coupler Efficiency 2 | . . . . . . . . . . . . . . . . . . . . . . 1 . 1 . . . . . . Robot Detection 1 | . . . . . . . . . . 1 . . . . . . . . . . . . . . . . . . . . Alert ID Control 1 | . . . . . . . . . . . . . . . . . . 1 . . . . . . . . . . . . Structural Interface 1 | . . . . . . . . . . . . 1 . . . . . . . . . . . . . . . . . . Program Shield 1 | . . . . . . . . . . . . . . . . . . . . . . . . . . . . 1 . . Autoassimilate 2 | . . . . . . . . . . . . . . . . . . . . 1 . . . . . 1 . . . . Robots Hacked 153 | . . . . . . . . . 2 . 1 7 9 4 1 . . . 4 4 7 11 2 20 16 20 2 25 11 7 Non-combat 15 | . . . . . . . . . . . 1 . 1 1 . . . . 1 . 4 . . 1 2 . . . 3 1 Combat 138 | . . . . . . . . . 2 . . 7 8 3 1 . . . 3 4 3 11 2 19 14 20 2 25 8 6 Autoassimilated 28 | . . . . . . . . . . . . . . . . . . . . . . 6 . 6 2 3 . 7 3 1 Robot Hacks Applied 139 | . . . . . . . . . 2 . 1 7 11 4 1 . . . 6 5 10 5 3 14 16 17 2 18 11 6 parse_system 2 | . . . . . . . . . . . . . . . 1 . . . . . . . . 1 . . . . . . purge_threat 6 | . . . . . . . . . . . . . 2 . . . . . . . 2 . . . 2 . . . . . reprogram_traps 1 | . . . . . . . . . . . . . . . . . . . . . 1 . . . . . . . . . block_reporting 1 | . . . . . . . . . . . . . . . . . . . . . . . . . . . . . . 1 summon_haulers 1 | . . . . . . . . . . . . . 1 . . . . . . . . . . . . . . . . . map_route 13 | . . . . . . . . . . . 1 . . . . . . . 2 . 3 . . . 1 . . . 6 . relay_feed 1 | . . . . . . . . . . . . . . 1 . . . . . . . . . . . . . . . . find_garrison 5 | . . . . . . . . . . . . . . . . . . . 1 . 1 . 1 . 2 . . . . . scatter_targeting 3 | . . . . . . . . . . . . . 2 . . . . . . 1 . . . . . . . . . . disable_weapons 4 | . . . . . . . . . . . . . . . . . . . 1 1 . . . 1 . . 1 . . . streamctrl_high 6 | . . . . . . . . . 1 . . 1 . . . . . . . . . . . 2 . 1 . . . 1 formatsys_high 96 | . . . . . . . . . 1 . . 6 6 3 . . . . 2 3 3 5 2 10 11 16 1 18 5 4 Relay Couplers Released 120 | . . . . . . . 13 . . 7 . 16 . . . . . 8 . 12 . 11 . 16 2 16 . 19 . . Machine Destruction 120 | . . . . . . . 13 . . 7 . 16 . . . . . 8 . 12 . 11 . 16 2 16 . 19 . . Attached 75 | . . . . . . . 1 . . 1 1 5 6 2 . . . . 3 3 4 5 2 8 4 12 . 11 4 3 Robots Rewired 33 | . . . . . . . . 13 . . . . 1 4 . . . . . . . . . 6 . . . 9 . . Allies Hacked 1 | . . . . . . . . . . . . . . . . . . . . . . . . . . . 1 . . . Hacks Repelled . | . . . . . . . . . . . . . . . . . . . . . . . . . . . . . . . Allies | -11 -10 -10 -10 -9 -8 -8 -8 -8 -6 -6 -6 -6 -5 -5 -5 -5 -5 -5 -4 -4 -4 -4 -3 -3 -2 -2 -2 -2 -1 -1 -------- Run | Scr Mat Min Exi Min Mat Sto Gar Rec Fac Gar Fac Gar Fac Ext Cet Arc Hub Gar Fac Gar Fac Gar Res Gar Res Gar Res Gar Acc Com Total Allies 173 | . . 1 . 2 . . . 13 2 . . 7 7 9 5 . . . 2 3 3 11 2 24 13 20 1 34 8 6 Largest Group 32 | . . 1 1 2 2 . . 12 11 . . 5 3 6 6 3 2 . 1 1 2 8 7 14 16 14 14 32 22 6 Highest-Rated Group 1773 | . . 31 31 52 52 . . 210 195 . . 112 119 348 601 268 181 . 49 56 98 376 329 681 789 815 829 1773 1262 666 Highest-Rated Ally 222 | . . 31 31 31 31 . . 34 34 . . 32 49 156 150 94 94 . 49 56 49 49 64 64 64 69 69 69 69 222 Total Orders 108 | . . . . . . . . . 1 . . 11 3 4 . . . . . 1 4 3 3 6 2 18 7 37 6 2 STAY 22 | . . . . . . . . . 1 . . 1 1 1 . . . . . . 1 1 . 1 . 5 . 7 2 1 GOTO 57 | . . . . . . . . . . . . 7 1 2 . . . . . 1 . 2 2 3 1 6 5 27 . . FOLLOW 27 | . . . . . . . . . . . . 3 1 1 . . . . . . 1 . 1 2 1 7 2 3 4 1 EXPLORE 2 | . . . . . . . . . . . . . . . . . . . . . 2 . . . . . . . . . Ally Attacks 1161 | . . . . 3 9 . . 13 17 . . 71 34 82 48 26 3 . 13 12 1 40 25 128 163 54 39 132 216 32 Total Damage 38289 | . . . . 45 196 . . 528 614 . . 1185 850 2492 1804 870 141 . 306 395 20 1140 647 4098 5105 2101 1524 4597 8292 1339 Kills 221 | . . . . 2 4 . . 6 3 . . 6 8 20 12 4 1 . 3 1 . 5 3 24 24 7 6 19 57 6 Allies Corrupted 6 | . . . . . . . . . . . . . . . . . . . . . . . . 1 1 . . . 2 2 Allies Melted . | . . . . . . . . . . . . . . . . . . . . . . . . . . . . . . . Intel | -11 -10 -10 -10 -9 -8 -8 -8 -8 -6 -6 -6 -6 -5 -5 -5 -5 -5 -5 -4 -4 -4 -4 -3 -3 -2 -2 -2 -2 -1 -1 ------- Run | Scr Mat Min Exi Min Mat Sto Gar Rec Fac Gar Fac Gar Fac Ext Cet Arc Hub Gar Fac Gar Fac Gar Res Gar Res Gar Res Gar Acc Com Robot Analysis Total 2 | . . . . . . 1 . . . . . . 1 . . . . . . . . . . . . . . . . . Derelict Logs Recovered 3 | . . 2 . 1 . . . . . . . . . . . . . . . . . . . . . . . . . . Drone Launches 2 | . . . . . . . . . . . . . . . . . . . . . 2 . . . . . . . . . Drone Recoveries . | . . . . . . . . . . . . . . . . . . . . . . . . . . . . . . . Exploration | -11 -10 -10 -10 -9 -8 -8 -8 -8 -6 -6 -6 -6 -5 -5 -5 -5 -5 -5 -4 -4 -4 -4 -3 -3 -2 -2 -2 -2 -1 -1 ------------- Run | Scr Mat Min Exi Min Mat Sto Gar Rec Fac Gar Fac Gar Fac Ext Cet Arc Hub Gar Fac Gar Fac Gar Res Gar Res Gar Res Gar Acc Com Turns Passed 30056 | 140 163 759 240 695 705 1330 1291 482 313 936 382 2114 816 2146 712 196 159 1000 987 1367 856 1367 315 2300 1318 1991 325 2735 1010 906 Spaces Moved 14244 | 94 139 652 278 717 437 507 624 212 136 349 164 952 350 888 332 70 70 472 375 577 343 557 130 1007 535 874 153 1237 467 546 Core 188 | 18 . . . . . . . . . . . . . . . . . . . . . . . . . . . . . 170 Treads 11704 | . . . . . . 454 624 212 136 349 164 952 350 888 332 70 70 472 375 577 343 557 130 1007 535 874 153 1237 467 376 Legs . | . . . . . . . . . . . . . . . . . . . . . . . . . . . . . . . Wheels 2352 | 76 139 652 278 717 437 53 . . . . . . . . . . . . . . . . . . . . . . . . Hover . | . . . . . . . . . . . . . . . . . . . . . . . . . . . . . . . Flight . | . . . . . . . . . . . . . . . . . . . . . . . . . . . . . . . Fastest Speed 50 | 50 80 80 80 90 90 160 180 180 180 178 178 178 176 180 182 183 163 180 180 160 160 160 195 176 165 165 150 170 172 50 Average Speed 165 | 74 80 80 82 90 132 177 182 195 180 178 178 178 177 209 182 183 181 180 180 179 179 187 195 186 165 173 172 175 173 135 Slowest Speed 245 | 80 80 80 90 90 160 200 200 200 180 200 178 178 220 240 183 183 183 180 180 180 180 200 195 245 176 185 175 192 176 197 Overloaded Moves . | . . . . . . . . . . . . . . . . . . . . . . . . . . . . . . . Propulsion Burnouts . | . . . . . . . . . . . . . . . . . . . . . . . . . . . . . . . Robots Hopped . | . . . . . . . . . . . . . . . . . . . . . . . . . . . . . . . Cave-ins Triggered 1 | . . . . . . . . . . . . . . . . . . . . . . . 1 . . . . . . . Exploration Rate (%) 51 | 4 28 98 70 99 28 84 70 38 4 60 6 93 12 98 76 75 17 85 12 75 20 60 5 99 19 99 6 99 14 28 Regions Visited 30 Branch Regions 10 Pre-discovered Areas 1 | . . 1 . . . . . . . . . . . . . . . . . . . . . . . . . . . . Known Exits Taken 13 | . . . . . 1 1 . 1 1 . 1 . 1 . . . 1 . 1 . 1 . 1 . 1 . 1 . 1 . Unknown Exits Taken 8 | 1 1 1 1 1 . . . . . . . . . 1 1 1 . . . . . . . . . . . . . . Scrap Searched 2 | . . 1 . 1 . . . . . . . . . . . . . . . . . . . . . . . . . . Spaces Dug 99 | . . . . . . 33 . . . . 3 10 12 . . . 13 . 5 . . . 6 . 6 8 3 . . . Terrain Destroyed 894 | . . 69 . 24 . 82 6 . . 25 3 45 12 1 87 . 172 149 49 80 9 1 6 4 33 14 3 1 1 18 Melee 70 | . . . . . . 33 . . . . 3 4 12 . . . . . 5 . . . 4 . 6 . 3 . . . Projectile 76 | . . . . . . . . . . 2 . . . 1 4 . . . 2 10 7 1 2 4 9 14 . 1 1 18 AOE 748 | . . 69 . 24 . 49 6 . . 23 . 41 . . 83 . 172 149 42 70 2 . . . 18 . . . . . Actions | -11 -10 -10 -10 -9 -8 -8 -8 -8 -6 -6 -6 -6 -5 -5 -5 -5 -5 -5 -4 -4 -4 -4 -3 -3 -2 -2 -2 -2 -1 -1 --------- Run | Scr Mat Min Exi Min Mat Sto Gar Rec Fac Gar Fac Gar Fac Ext Cet Arc Hub Gar Fac Gar Fac Gar Res Gar Res Gar Res Gar Acc Com Total 19428 | 130 168 860 288 760 543 779 748 263 201 620 234 1260 505 1105 393 108 91 581 621 822 544 864 178 1356 818 1284 209 1786 651 658 Wait 2764 | . 10 154 . 39 16 133 71 4 50 201 43 159 78 101 10 8 5 41 164 124 80 227 27 139 109 246 14 367 130 14 Move 14204 | 93 138 651 277 716 436 506 622 211 136 347 163 949 349 887 331 69 69 470 374 575 342 555 128 1005 534 872 152 1235 466 546 Hop . | . . . . . . . . . . . . . . . . . . . . . . . . . . . . . . . Pick Up 446 | 13 5 11 4 2 35 15 12 1 6 8 5 20 15 18 9 4 3 14 16 28 27 18 3 37 21 39 13 29 8 7 Fast Attach . | . . . . . . . . . . . . . . . . . . . . . . . . . . . . . . . Attach 217 | 6 1 1 . . 5 6 1 . 5 7 . 10 5 7 2 2 2 9 11 12 13 12 3 24 20 11 6 9 4 23 Detach 10 | . . . . . . . . . . 1 . . . . . . . 1 . . 1 4 . 1 . . . 1 . 1 Swap 259 | . . 4 3 . 13 15 10 2 . 5 5 19 10 9 12 3 1 3 13 17 13 9 3 11 22 27 7 12 5 6 Drop 226 | 1 2 8 4 . 23 11 5 . . 2 3 5 9 8 7 2 4 4 2 12 27 9 1 11 16 13 7 12 3 15 Fire 831 | 17 12 19 . 3 15 38 16 27 2 23 4 56 20 37 22 19 7 27 35 40 40 17 8 59 87 63 7 33 33 45 Melee 124 | . . . . . . 51 . . . . 11 24 15 1 . . . . 6 1 . . 4 . 7 . 3 1 . . Ram 1 | . . 1 . . . . . . . . . . . . . . . . . . . . . . . . . . . . Kick . | . . . . . . . . . . . . . . . . . . . . . . . . . . . . . . . Crush 10 | . . . . . . 4 . . 2 . . 1 . . . 1 . . . . . . . . 2 . . . . . Escape Stasis 137 | . . . . . . . 10 . . 26 . 16 . 6 . . . 12 . 13 . 4 1 14 . 12 . 22 . 1 Rewire 198 | . . 11 . . . . 1 18 . . . 1 4 31 . . . . . . . 9 . 55 . 1 . 65 2 . Trap . | . . . . . . . . . . . . . . . . . . . . . . . . . . . . . . . Miscellaneous 1 | . . . . . . . . . . . . . . . . . . . . . 1 . . . . . . . . . Route ------- -11/Scrapyard -10/Materials -10/Mines (discovered 3 exits: [*Mat x2] / *Exi) -10/Exiles (discovered 2 exits: *Min x2) -9/Mines (discovered 2 exits: *Mat x2) -8/Materials (discovered 3 exits: Fac / *Sto x2) -8/Storage (discovered 2 exits: *Fac / Gar) -8/Garrison (discovered 2 exits: *Rec x2) -8/Recycling -6/Factory -6/Garrison (discovered 2 exits: *Fac x2) -6/Factory (discovered 3 exits: Low x2 / Gar) -6/Garrison (discovered 3 exits: *Fac x3) -5/Factory (discovered 4 exits: Upp x2 / *Ext x2) -5/Extension (discovered 2 exits: *Fac / *Cet) -5/Cetus (discovered 3 exits: *Fac x2 / *Arc) -5/Archives -5/Hub_04(d) -5/Garrison (discovered 3 exits: *Fac x3) -4/Factory (discovered 2 exits: [*Upp] / Gar) -4/Garrison (discovered 2 exits: *Fac x2) -4/Factory (discovered 3 exits: *Res / [Upp] / Gar) -4/Garrison (discovered 2 exits: *Res x2) -3/Research -3/Garrison (discovered 3 exits: *Res x3) -2/Research -2/Garrison (discovered 3 exits: *Res x3) -2/Research -2/Garrison (discovered 3 exits: *Acc x3) -1/Access -1/Command History --------- Turn | Location | Event 4 | -11/Scrapyard | Discovered new exit (range 16) 141 | -11/Scrapyard | Entered Materials 203 | -10/Materials | Discovered new exit (range 14) 304 | -10/Materials | Entered Mines 311 | -10/Mines | Build established: Mutant 311 | -10/Mines | Received a Rocket Launcher from a helpful Derelict 362 | -10/Mines | Assembled infested the area 404 | -10/Mines | Met 8R-AWN 461 | -10/Mines | Discovered new exit (range 15) 501 | -10/Mines | Joined a pair of Derelicts in attacking an 0b10 outpost 503 | -10/Mines | Learned location of Zion (-7) 590 | -10/Mines | Discovered new exit (range 5) 612 | -10/Mines | Discovered new exit (range 16) 664 | -10/Mines | Learned location of 2 exits from Materials 942 | -10/Mines | Escorted by a lone wolf Derelict 1063 | -10/Mines | Entered Exiles 1063 | -10/Exiles | Accompanied by 1 ally 1076 | -10/Exiles | Discovered new exit (range 15) 1085 | -10/Exiles | Welcomed by 8R-AWN 1097 | -10/Exiles | Met EX-HEX 1120 | -10/Exiles | Met EX-BIN 1129 | -10/Exiles | Aligned with FarCom system 1130 | -10/Exiles | Given EX-Vault access code 1152 | -10/Exiles | Opened EX-Vault 1163 | -10/Exiles | Found Gui. Plasma Cannon 1183 | -10/Exiles | Warned to stay clear of 0b10 Research branches 1255 | -10/Exiles | Met EX-DEC 1294 | -10/Exiles | Discovered new exit (range 11) 1303 | -10/Exiles | Left Exiles lab with Gui. Plasma Cannon 1303 | -10/Exiles | Entered Mines 1383 | -9/Mines | Discovered new exit (range 14) 1431 | -9/Mines | Met a Derelict who couldn't figure out how to use a Trap Extractor 1852 | -9/Mines | Discovered new exit (range 14) 1998 | -9/Mines | Entered Materials 1998 | -8/Materials | Accompanied by 2 allies 1998 | -8/Materials | Evolved 4 slots: Propulsion x1, Utility x2, Weapon x1 1999 | -8/Materials | Identified exit to Storage 2000 | -8/Materials | Identified exit to Factory 2003 | -8/Materials | Led the pair of lost Derelicts to an unsafe place 2467 | -8/Materials | Build established: Scavenger-Skirmisher 2703 | -8/Materials | Entered Storage 3463 | -8/Storage | Build established: Hauler-Mutant 3939 | -8/Storage | Destroyed 8 combat bots 4031 | -8/Storage | Identified exit to Garrison 4033 | -8/Storage | Entered Garrison 4081 | -8/Garrison | Triggered checkpoint 4170 | -8/Garrison | Triggered checkpoint 4173 | -8/Garrison | Triggered checkpoint 4197 | -8/Garrison | Destroyed 7 combat bots 4352 | -8/Garrison | Discovered new exit (range 13) 4385 | -8/Garrison | Installed Relay Interface Framework 4616 | -8/Garrison | Triggered checkpoint 4639 | -8/Garrison | Triggered checkpoint 4752 | -8/Garrison | Garrison Relay disabled 4966 | -8/Garrison | Triggered checkpoint 5001 | -8/Garrison | Garrison Relay disabled 5167 | -8/Garrison | Triggered checkpoint 5288 | -8/Garrison | Triggered checkpoint 5292 | -8/Garrison | Discovered new exit (range 14) 5324 | -8/Garrison | Entered Recycling 5353 | -8/Recycling | Spotter reported a threat 5419 | -8/Recycling | Spotter reported a threat 5580 | -8/Recycling | Spotter reported a threat 5592 | -8/Recycling | Identified exit to Factory 5623 | -8/Recycling | Spotter reported a threat 5634 | -8/Recycling | Build established: Bothacker-Mutant 5691 | -8/Recycling | Spotter reported a threat 5779 | -8/Recycling | Spotter reported a threat 5780 | -8/Recycling | Spotter reported a threat 5780 | -8/Recycling | Spotter reported a threat 5780 | -8/Recycling | Spotter reported a threat 5806 | -8/Recycling | Entered Factory 5806 | -6/Factory | Accompanied by 11 allies 5806 | -6/Factory | Evolved 4 slots: Propulsion x1, Utility x2, Weapon x1 5948 | -6/Factory | Identified exit to Garrison 6114 | -6/Factory | Garrison activated, responded to threat 6119 | -6/Factory | Entered Garrison 6129 | -6/Garrison | Expanded RIF knowledge: Robot Detection 6149 | -6/Garrison | Lost 3 parts (2n1w) 6363 | -6/Garrison | Triggered checkpoint 6464 | -6/Garrison | Discovered new exit (range 11) 6536 | -6/Garrison | Triggered checkpoint 6583 | -6/Garrison | Garrison Relay disabled 6820 | -6/Garrison | Triggered checkpoint 6898 | -6/Garrison | Discovered new exit (range 10) 6926 | -6/Garrison | Triggered checkpoint 6982 | -6/Garrison | Garrison Relay disabled 7055 | -6/Garrison | Entered Factory 7218 | -6/Factory | Identified exit to Lower Caves 7435 | -6/Factory | Identified exit to Garrison 7437 | -6/Factory | Entered Garrison 7586 | -6/Garrison | Triggered checkpoint 7816 | -6/Garrison | Garrison Relay disabled 8212 | -6/Garrison | Spotted B-75 Beast 8282 | -6/Garrison | Triggered checkpoint 8298 | -6/Garrison | Triggered checkpoint 8368 | -6/Garrison | Triggered checkpoint 8400 | -6/Garrison | Build established: Bothacker-Skirmisher 8401 | -6/Garrison | Discovered new exit (range 9) 8579 | -6/Garrison | Discovered new exit (range 14) 8863 | -6/Garrison | Discovered new exit (range 12) 8897 | -6/Garrison | Expanded RIF knowledge: Structural Interface 9000 | -6/Garrison | Triggered checkpoint 9019 | -6/Garrison | Garrison Relay disabled 9050 | -6/Garrison | Build established: Bothacker-Mutant 9198 | -6/Garrison | Triggered checkpoint 9248 | -6/Garrison | Lost 3 parts (1u2w) 9249 | -6/Garrison | Garrison Relay disabled 9450 | -6/Garrison | Garrison Relay disabled 9551 | -6/Garrison | Entered Factory 9551 | -5/Factory | Evolved 2 slots: Utility x2 9635 | -5/Factory | Identified exit to Upper Caves 9635 | -5/Factory | Identified exit to Extension 10367 | -5/Factory | Entered Extension 10398 | -5/Extension | Lost 4 parts (3n1w) 11142 | -5/Extension | Rescued A7 11467 | -5/Extension | Disrupted transfer network 11705 | -5/Extension | Spotted B-75 Beast 11712 | -5/Extension | Allies destroyed B-75 Beast 11884 | -5/Extension | Rescued a captive Derelict 12142 | -5/Extension | Build established: Bothacker-Skirmisher 12259 | -5/Extension | Discovered new exit (range 10) 12261 | -5/Extension | Discovered new exit (range 6) 12513 | -5/Extension | Entered Cetus 12513 | -5/Cetus | Accompanied by 6 allies 12518 | -5/Cetus | Acquired a Cetus Manufacturing Module code from A7 12539 | -5/Cetus | Spotted Cetus Guard 12539 | -5/Cetus | Spotted Cetus Guard 12540 | -5/Cetus | Spotted Cetus Guard 12549 | -5/Cetus | Spotted Cetus Guard 12558 | -5/Cetus | Destroyed Cetus Guard 12582 | -5/Cetus | Destroyed Cetus Guard 12597 | -5/Cetus | Destroyed Cetus Guard 12601 | -5/Cetus | Destroyed Cetus Guard 12712 | -5/Cetus | Started Cetus Manufacturing Module 12737 | -5/Cetus | Manufactured an Enhanced Grunt 12762 | -5/Cetus | Manufactured an Enhanced Grunt 12787 | -5/Cetus | Manufactured an Enhanced Grunt 12812 | -5/Cetus | Manufactured an Enhanced Grunt 12837 | -5/Cetus | Manufactured an Enhanced Grunt 12878 | -5/Cetus | Discovered new exit (range 15) 13013 | -5/Cetus | Discovered new exit (range 16) 13051 | -5/Cetus | Spotted Cetus Guard 13053 | -5/Cetus | Spotted Cetus Guard 13053 | -5/Cetus | Spotted Cetus Guard 13057 | -5/Cetus | Spotted Cetus Guard 13060 | -5/Cetus | Destroyed Cetus Guard 13072 | -5/Cetus | Discovered new exit (range 15) 13073 | -5/Cetus | Allies destroyed Cetus Guard 13076 | -5/Cetus | Destroyed Cetus Guard 13076 | -5/Cetus | Allies destroyed Cetus Guard 13084 | -5/Cetus | Met Revision 17 13175 | -5/Cetus | Extracted ID and sensor layout for unrecognized location from A7's data core 13225 | -5/Cetus | Entered Archives 13225 | -5/Archives | Accompanied by 3 allies 13346 | -5/Archives | Discovered new exit (range 15) 13371 | -5/Archives | Unable to access archive contents 13421 | -5/Archives | Entered Hub_04(d) 13421 | -5/Hub_04(d) | Accompanied by 2 allies 13545 | -5/Hub_04(d) | Network Hub disabled 13545 | -5/Hub_04(d) | Garrison activated, responded to threat 13550 | -5/Hub_04(d) | Spotted B-75 Beast 13550 | -5/Hub_04(d) | Spotted Lightning 13553 | -5/Hub_04(d) | Spotted Lightning 13553 | -5/Hub_04(d) | Spotted Lightning 13553 | -5/Hub_04(d) | Spotted Lightning 13553 | -5/Hub_04(d) | Spotted Lightning 13554 | -5/Hub_04(d) | Spotted Lightning 13557 | -5/Hub_04(d) | Disrupted transfer network 13557 | -5/Hub_04(d) | Spotted Lightning 13557 | -5/Hub_04(d) | Spotted Lightning 13559 | -5/Hub_04(d) | System corruption reached 10% 13561 | -5/Hub_04(d) | Spotted Lightning 13569 | -5/Hub_04(d) | Spotted Lightning 13576 | -5/Hub_04(d) | Spotted Lightning 13578 | -5/Hub_04(d) | Identified exit to Garrison 13580 | -5/Hub_04(d) | Entered Garrison 13596 | -5/Garrison | Lost 5 parts (1n1u3w) 13659 | -5/Garrison | Triggered checkpoint 13723 | -5/Garrison | Garrison Relay disabled 13890 | -5/Garrison | Triggered checkpoint 14014 | -5/Garrison | Discovered new exit (range 10) 14026 | -5/Garrison | Build established: Bothacker-Mutant 14135 | -5/Garrison | Triggered checkpoint 14248 | -5/Garrison | Discovered new exit (range 3) 14334 | -5/Garrison | Triggered checkpoint 14356 | -5/Garrison | Triggered checkpoint 14389 | -5/Garrison | Discovered new exit (range 10) 14406 | -5/Garrison | Triggered checkpoint 14422 | -5/Garrison | Build established: Bothacker-Tank 14486 | -5/Garrison | Garrison Relay disabled 14567 | -5/Garrison | Expanded RIF knowledge: Alert ID Control 14580 | -5/Garrison | Entered Factory 14580 | -4/Factory | Evolved 2 slots: Utility x2 14877 | -4/Factory | Build established: Botlord-Mutant 15109 | -4/Factory | Repaired Centrium Heavy Treads 15190 | -4/Factory | Discovered new exit (range 15) 15330 | -4/Factory | First assault squad dispatched 15407 | -4/Factory | Found Quantum Capacitor 15415 | -4/Factory | Lost 6 parts (1p2n2u1w) 15565 | -4/Factory | Identified exit to Garrison 15567 | -4/Factory | Entered Garrison 15656 | -4/Garrison | Build established: Bothacker-Mutant 15695 | -4/Garrison | Garrison Relay disabled 15736 | -4/Garrison | Triggered checkpoint 15976 | -4/Garrison | Spotted B-86 Titan 16091 | -4/Garrison | Destroyed B-86 Titan 16103 | -4/Garrison | Lost 6 parts (1p1n4w) 16128 | -4/Garrison | Triggered checkpoint 16260 | -4/Garrison | Discovered new exit (range 15) 16392 | -4/Garrison | Triggered checkpoint 16460 | -4/Garrison | Garrison Relay disabled 16616 | -4/Garrison | Triggered checkpoint 16693 | -4/Garrison | Discovered new exit (range 9) 16727 | -4/Garrison | Expanded RIF knowledge: Autoassimilate 16751 | -4/Garrison | Build established: Botlord-Mutant 16768 | -4/Garrison | Triggered checkpoint 16828 | -4/Garrison | Garrison Relay disabled 16934 | -4/Garrison | Entered Factory 17363 | -4/Factory | Discovered new exit (range 171) 17538 | -4/Factory | System corruption reached 10% 17737 | -4/Factory | Discovered new exit (range 60) 17788 | -4/Factory | Identified exit to Garrison 17790 | -4/Factory | Entered Garrison 17790 | -4/Garrison | Accompanied by 2 allies 17799 | -4/Garrison | Expanded RIF knowledge: Coupler Efficiency 17916 | -4/Garrison | Triggered checkpoint 18003 | -4/Garrison | Garrison Relay disabled 18262 | -4/Garrison | Build established: Botlord-Skirmisher 18317 | -4/Garrison | Spotted B-86 Titan 18417 | -4/Garrison | Allies destroyed B-86 Titan 18428 | -4/Garrison | Triggered checkpoint 18490 | -4/Garrison | Triggered checkpoint 18552 | -4/Garrison | Triggered checkpoint 18636 | -4/Garrison | Build established: Botlord-Mutant 18636 | -4/Garrison | Garrison Relay disabled 18699 | -4/Garrison | Discovered new exit (range 13) 18991 | -4/Garrison | Discovered new exit (range 5) 19034 | -4/Garrison | Triggered checkpoint 19072 | -4/Garrison | Garrison Relay disabled 19157 | -4/Garrison | Entered Research 19157 | -3/Research | Accompanied by 7 allies 19157 | -3/Research | Evolved 2 slots: Utility x2 19433 | -3/Research | Crushed by falling debris 19451 | -3/Research | Identified exit to Garrison 19472 | -3/Research | Entered Garrison 19511 | -3/Garrison | Garrison Relay disabled 19646 | -3/Garrison | Spotted B-86 Titan 19708 | -3/Garrison | Lost 4 parts (1p1n2w) 19785 | -3/Garrison | Destroyed B-86 Titan 19807 | -3/Garrison | Lost 5 parts (1p2u2w) 19922 | -3/Garrison | Triggered checkpoint 19997 | -3/Garrison | Triggered checkpoint 20026 | -3/Garrison | Triggered checkpoint 20028 | -3/Garrison | Triggered checkpoint 20178 | -3/Garrison | Lost 3 parts (2n1w) 20414 | -3/Garrison | Garrison Relay disabled 20611 | -3/Garrison | Discovered new exit (range 9) 20704 | -3/Garrison | Triggered checkpoint 20740 | -3/Garrison | Triggered checkpoint 20797 | -3/Garrison | Triggered checkpoint 20962 | -3/Garrison | Triggered checkpoint 20967 | -3/Garrison | Garrison Relay disabled 21059 | -3/Garrison | Discovered new exit (range 10) 21089 | -3/Garrison | Expanded RIF knowledge: Coupler Efficiency 21260 | -3/Garrison | Triggered checkpoint 21287 | -3/Garrison | Discovered new exit (range 11) 21375 | -3/Garrison | Garrison Relay disabled 21586 | -3/Garrison | Triggered checkpoint 21772 | -3/Garrison | Entered Research 21772 | -2/Research | Accompanied by 14 allies 21772 | -2/Research | Evolved 2 slots: Utility x2 21894 | -2/Research | Garrison activated, responded to threat 21895 | -2/Research | Identified exit to Garrison 22028 | -2/Research | Spotted B-90 Cyclops 22044 | -2/Research | Allies destroyed B-90 Cyclops 22268 | -2/Research | P-80 Master assimilated allied Enforcer 9d 22276 | -2/Research | P-80 Master assimilated allied Swordsman 8a 22278 | -2/Research | P-80 Master assimilated allied Swordsman 8b 22842 | -2/Research | Lost 5 parts (5w) 23074 | -2/Research | Identified exit to Garrison 23090 | -2/Research | Entered Garrison 23206 | -2/Garrison | Triggered checkpoint 23237 | -2/Garrison | Garrison Relay disabled 23629 | -2/Garrison | Found Adv. Force Booster 23689 | -2/Garrison | Discovered new exit (range 10) 23813 | -2/Garrison | Triggered checkpoint 23829 | -2/Garrison | Garrison Relay disabled 24148 | -2/Garrison | Spotted B-90 Cyclops 24158 | -2/Garrison | Triggered checkpoint 24166 | -2/Garrison | Triggered checkpoint 24180 | -2/Garrison | Allies destroyed B-90 Cyclops 24427 | -2/Garrison | Discovered new exit (range 5) 24456 | -2/Garrison | Build established: Botlord-Gunner 24472 | -2/Garrison | Triggered checkpoint 24493 | -2/Garrison | Garrison Relay disabled 24590 | -2/Garrison | Triggered checkpoint 24610 | -2/Garrison | Triggered checkpoint 24732 | -2/Garrison | Triggered checkpoint 24755 | -2/Garrison | Garrison Relay disabled 24792 | -2/Garrison | Build established: Botlord-Mutant 24854 | -2/Garrison | Discovered new exit (range 9) 24883 | -2/Garrison | Expanded RIF knowledge: Autoassimilate 25081 | -2/Garrison | Entered Research 25081 | -2/Research | Accompanied by 13 allies 25166 | -2/Research | Identified exit to Garrison 25366 | -2/Research | Garrison activated, responded to threat 25406 | -2/Research | Entered Garrison 25406 | -2/Garrison | Accompanied by 11 allies 25415 | -2/Garrison | Expanded RIF knowledge: Program Shield 25452 | -2/Garrison | Triggered checkpoint 25476 | -2/Garrison | Garrison Relay disabled 25690 | -2/Garrison | Spotted B-90 Cyclops 25694 | -2/Garrison | Triggered checkpoint 25708 | -2/Garrison | Triggered checkpoint 25721 | -2/Garrison | Allies destroyed B-90 Cyclops 25724 | -2/Garrison | Triggered checkpoint 25740 | -2/Garrison | Triggered checkpoint 26094 | -2/Garrison | Triggered checkpoint 26095 | -2/Garrison | Discovered new exit (range 6) 26539 | -2/Garrison | Discovered new exit (range 10) 26620 | -2/Garrison | Triggered checkpoint 26687 | -2/Garrison | Garrison Relay disabled 26880 | -2/Garrison | Triggered checkpoint 26910 | -2/Garrison | Triggered checkpoint 26942 | -2/Garrison | Garrison Relay disabled 27027 | -2/Garrison | Garrison Relay disabled 27218 | -2/Garrison | Triggered checkpoint 27236 | -2/Garrison | Garrison Relay disabled 27366 | -2/Garrison | Discovered new exit (range 11) 27564 | -2/Garrison | Build established: Commander-Mutant 28141 | -2/Garrison | Entered Access 28141 | -1/Access | Accompanied by 21 allies 28141 | -1/Access | Evolved 2 slots: Utility x2 28428 | -1/Access | Garrison activated, responded to threat 28447 | -1/Access | Build established: Botlord-Mutant 28865 | -1/Access | Garrison activated, responded to threat 29040 | -1/Access | Identified exit to Command 29151 | -1/Access | Entered Command 29151 | -1/Command | Accompanied by 6 allies 29473 | -1/Command | Lost 13 parts (3n7u3w) 29663 | -1/Command | Spotted B-99 Colossus 29665 | -1/Command | Assimilated Colossus 10a with formatsys_high 29925 | -1/Command | Spotted Executioner 29927 | -1/Command | Spotted Executioner 29928 | -1/Command | Spotted Alpha 7 29928 | -1/Command | Spotted Executioner 29928 | -1/Command | Spotted Alpha 7 29928 | -1/Command | Spotted Striker 29929 | -1/Command | Spotted Executioner 29932 | -1/Command | Spotted Striker 29933 | -1/Command | Disengaged cave seal 29933 | -1/Command | Wild derelicts emerged from the dark tunnel 29951 | -1/Command | Destroyed Striker 29970 | -1/Command | Destroyed Striker 29976 | -1/Command | Core integrity fell below 50% 29982 | -1/Command | Spotted B-99 Colossus 29983 | -1/Command | Autoassimilated Colossus 10b with RIF 29987 | -1/Command | Core integrity fell below 20% 30004 | -1/Command | Lost 15 parts (3n7u5w) 30050 | -1/Command | Spotted B-99 Colossus 30053 | -1/Command | Assimilated Colossus 10c with formatsys_high 30054 | -1/Command | Assimilated Colossus 10d with formatsys_high 30057 | -1/Command | Destroyed by P-80 Master with Gamma Rifle Last Messages --------------- Trojan loaded successfully. Testing... Terminal linked with 2 systems. Awaiting botnet instructions. 30028_ Connecting with Terminal... 30040_ System corrupted: Matter fused (-9). 30053_ Jacked B-99 Colossus... >>formatsys_high Rerouting network defenses. Erasing system data. Installing primary routines, ETC: 6. 30054_ Jacked B-99 Colossus... >>formatsys_high Rerouting network defenses. Erasing system data. Installing primary routines, ETC: 6. 30055_ Triggered Stasis Trap. 30055_ A bubble of rippling energy engulfs the area. 30055_ Field strength at 94. 30056_ Field strength at 88. Map ----- +----------------------------------------------------+ | #????# ?????????????????????????????? | | #????# ????????????????????????????? | | #######/#####""######???????????????????????????? | | ! ###??????????????????????????????? | | #??????????????????????????????? | | ##" #??????????????????????????????? | | #?#" """" ###??????????????????????????????? | | #?#"" """" #????????????????????????????????? | | #?#"" """" #????????????????????????????????? | | #?#"" """" #??##????????????????????????????? | | #?#"" ### #??? ????????????????????????? | | #?#"T BB ""# #??? ????????????????????????? | | #?# BB ""# #??? ????????????????????????? | | #?#" """ ""# #??? ??????? #??????????????? | | #?#"" "" T" #??? ??????? #??????????????? | | #?#"" " """##??? ?????? #??????????????? | | #?#" " """ #??? """""" #??????????????? | | ### """ #??? #??????????????? | | """ #???B BB ???????????????? | | gg g " #???B BB????????????????? | | ###########""/"""""#???# ##????????????????? | | #?# "#??? ^ #????????????????? | | #?# "##??# ##????????????????? | | #?# "#### k^ #????????????????? | | #?# =%! " ##;# ^ ##????????????????? | | #?# "" |[ " ## @ #????????????????? | | ### """" !] " ### ##????????????????? | | ## """" ![!![*" ## ^ #????????????????? | | T ##?? "" ""*"!!!!##### ^ ##????????????????? | | " #???? ""T=!*!##???# #?????????????????? | | #??? """!%!#????##////##?????????????????? | | ##?#+##E######!%#!#######p #??????????????????? | | #??# E #????#"**! # #??????????????????? | | #### #???##"!% # #??????????????????? | | #???# "=!][ / #??????????????????? | | #???# #%!!% # #??????????????????? | | #####+##########! # #??????????????????? | | #=% # #??????????????????? | | #+######### #??????????????????? | | """" """" # ######### #???????? ?????????? | | """" """" ! # #??????? #????????? | | """" """" # #?????? #????????? | | """" """" + ! ###### #????????? | | ? # #????????? | | # # ???????? | | ########+####### = + ??????? | | ?# ## !%! #????????? | | ?# ## ###### #????????? | | ?# ## #????# #????????? | | ?# ## #????# #????????? | +----------------------------------------------------+ Best States ------------- Heat Dissipation 99 Coolant Potential 100 Energy Generation 29 Energy Capacity 850 Matter Stores 300 Matter Capacity 300 Sight Range 16 Terrain Scan Density 10 Jamming Range 16 Power Amplification 30 Corruption Prevention 12 Armor Coverage 750 Resistance: KI 25 Resistance: TH 20 Resistance: EM 15 Phase Shifting 15 Evasion (%) 55 Targeting Accuracy 16 Target Analysis 8 Recoil Reduction 6 Offensive Hacking 14 Defensive Hacking 12 Item Schematics ----------------- Arm. Treads | -8/Materials | Scanalyzed Adv. Beam Rifle | -8/Materials | Scanalyzed Cesium-ion Thruster | -8/Storage | Hacked Adv. EMP Blaster | -6/Factory | Scanalyzed Smartbomb Launcher | -5/Extension | Hacked Adv. Heavy Treads | -5/Extension | Hacked Imp. Remote Datajack | -4/Factory | Scanalyzed Robot Schematics ------------------ None Fabricated ------------ Nothing Alien Tech Used ----------------- None Achievements -------------- None Challenges ------------ None Game ------ Seed LargeLargeCutter Manual? 0 Play Time 05:07:07 Cumulative 213.8 hours Start 2019.12.02 @ 23:45:42 End 2019.12.03 @ 20:30:03 Sessions 9 Manual Loads 0 Difficulty Rogue Special Mode None Game No. 281 Rogue 281 Adventurer 0 Explorer 0 Win Type - Total 2 Types 1/0/0/1/0/0/0 Lore% 53 Gallery% 75 Achievement% 52 Wizard Run 0 Options --------- ASCII 0 Keyboard 0 Movement Numpad Keybinds 0 Fullscreen 1 Font 16/Terminus Map View 75x55 Tactical HUD 1 Map Filters NONE Filters NONE Steam 1 RUN: fd636a3e-c4c1-4226-b22f-e4721ee98340